fUSD/lending_fUSD_20241222
["ID","MTS","AMOUNT","RATE_DAILY","PERIOD"]
[346354780,1734906647982,-989.18,0.0002,2]
[346354781,1734906647991,-3950.0,0.0002,2]
[346354782,1734906648000,-6144.8,0.0002,2]
[346354783,1734906648010,-1505.97,0.0002,2]
[346354784,1734906648029,-56963.13170792,0.0002,2]
[346354785,1734906648039,-1236.41145142,0.0002,2]
[346354786,1734906648048,-500.0,0.0002,2]
[346354787,1734906648057,-561.79,0.0002,2]
[346354788,1734906648066,-747.0,0.0002,2]
[346354789,1734906648075,-797.85,0.0002,2]
[346354790,1734906648085,-1776.58,0.0002,2]
[346354791,1734906648094,-25507383.63174464,0.0002,2]
[346354792,1734906648115,-976.2,0.0002,2]
[346354793,1734906648126,-392.94026559,0.0002,2]
[346354794,1734906648138,-3362.7450107,0.0002,2]
[346354795,1734906648149,-3264.13760739,0.0002,2]
[346354796,1734906648167,-1477.47,0.0002,2]
[346354797,1734906648178,-13569.61253999,0.0002,2]
[346354798,1734906648190,-1937.25,0.0002,2]
[346354799,1734906648202,-161224.08667092,0.0002,2]
[346354800,1734906648219,-938.99411848,0.0002,2]
[346354801,1734906648352,-362.85904752,0.00019178,2]
[346354802,1734906648370,-137.14095248,0.00019178,2]
[346354803,1734906648379,-500.0,0.00019452,2]
[346354804,1734906648389,-418.91479372,0.00019726,2]
[346354805,1734906648399,-834.555865,0.0002,2]
[346354806,1734906648997,-497.5200002,0.00016677,2]
[346354807,1734906649012,-911.21520706,0.00016677,2]
[346354808,1734906649022,-500.0,0.00019178,2]
[346354809,1734906649032,-406.45542294,0.00019452,2]
[346354810,1734906649043,-8.58457706,0.00019452,2]
[346354811,1734906649054,-1757.18676244,0.00019818,2]
[346354812,1734906649065,-673.74418283,0.00019818,2]
[346354813,1734906649077,-7159.06905473,0.00019818,2]
[346354814,1734906649086,-1000.0,0.000199,2]
[346354815,1734906649096,-66005.31791215,0.0002,2]
[346354816,1734906649107,-1281.77860811,0.0002,2]
[346354817,1734906649150,-3289.827945,0.0002,2]
[346354818,1734906649551,-1889.72968147,0.0002,2]
[346354819,1734906649562,-2198.27166896,0.0002,2]
[346354820,1734906649574,-4422.40719772,0.0002,2]
[346354893,1734906988645,-182.48,0.00015051,2]
[346354894,1734907027550,433.46,0.00015041,2]
[346354895,1734907044310,167.24,0.00013699,2]
[346354897,1734907557983,450.0,0.00013,2]
[346354898,1734907559077,500.0,0.00015,2]
[346354910,1734907817685,5000.0,0.0002,120]
[346354916,1734907832455,-1153.44,0.00016433,2]
[346354917,1734907832464,-550.0,0.00017,2]
[346354918,1734907832473,-3897.0,0.00017875,2]
[346354919,1734907832482,-150.0,0.00017973,2]
[346354920,1734907832493,-300.0,0.00017999,2]
[346354921,1734907832502,-1600.00000009,0.00018,4]
[346354922,1734907832512,-150.0,0.00018,2]
[346354923,1734907832521,-150.0,0.00018,2]
[346354924,1734907832531,-150.0,0.00018,2]
[346354925,1734907832541,-506.3,0.00018,2]
[346354926,1734907832552,-494.8,0.00018,2]
[346354927,1734907832562,-501.75,0.00018,2]
[346354928,1734907832572,-502.81,0.00018,2]
[346354929,1734907832582,-495.91,0.00018,2]
[346354930,1734907832591,-503.34,0.00018,2]
[346354931,1734907832600,-493.86,0.00018,2]
[346354932,1734907832609,-490.15,0.00018,2]
[346354933,1734907832618,-500.36,0.00018,2]
[346354934,1734907832627,-497.07,0.00018,2]
[346354935,1734907832636,-250.0,0.0001828,2]
[346354936,1734907832645,-236.72,0.00018324,2]
[346354937,1734907832654,-395.38,0.00018335,2]
[346354938,1734907832664,-250.0,0.00018438,2]
[346354939,1734907832673,-23900.0,0.00018566,2]
[346354940,1734907832682,-1153.44,0.00018696,2]
[346354941,1734907832691,-177.68,0.0001884,30]
[346354942,1734907832702,-9896.16202642,0.000189,2]
[346354943,1734907832711,-1000.0,0.00018905,2]
[346354944,1734907832720,-250.0,0.00019,2]
[346354945,1734907832729,-2055.0,0.00019,2]
[346354946,1734907832738,-324.384,0.00019,2]
[346354947,1734907832747,-600.0,0.00019,2]
[346354948,1734907832763,-793.10861652,0.00019069,2]
[346354949,1734907832772,-156.25953747,0.00019078,2]
[346354950,1734907832782,-2848.2356,0.00019078,2]
[346354951,1734907832791,-6778.5253,0.00019078,2]
[346354952,1734907832800,-2500.0,0.00019078,2]
[346354953,1734907832810,-159.50120868,0.000191,2]
[346354954,1734907832819,-159.50120865,0.00019128,2]
[346354956,1734907832829,-793.10861648,0.00019161,2]
[346354958,1734907832838,-156.25953738,0.00019169,2]
[346354960,1734907832848,-500.0,0.00019178,2]
[346354962,1734907832858,-220.29139,0.00019178,2]
[346354964,1734907832867,-502.68094169,0.00019178,2]
[346354966,1734907832876,-500.0,0.00019178,2]
[346354968,1734907832885,-500.0,0.00019178,2]
[346354970,1734907832894,-500.0,0.00019178,2]
[346354972,1734907832903,-500.0,0.00019178,2]
[346354974,1734907832912,-175.07,0.00019178,2]
[346354976,1734907832921,-500.0,0.00019178,2]
[346354978,1734907832930,-500.0,0.00019178,2]
[346354980,1734907832939,-500.0,0.00019178,2]
[346354982,1734907832949,-500.0,0.00019178,2]
[346354984,1734907832958,-500.0,0.00019178,2]
[346354986,1734907832967,-500.0,0.00019178,2]
[346354988,1734907832976,-2264.37,0.00019178,2]
[346354990,1734907832985,-500.0,0.00019178,2]
[346354992,1734907832994,-500.0,0.00019178,2]
[346354994,1734907833003,-500.0,0.00019178,2]
[346354996,1734907833012,-500.0,0.00019178,2]
[346354998,1734907833021,-500.0,0.00019178,2]
[346355000,1734907833030,-500.0,0.00019178,2]
[346355002,1734907833040,-500.0,0.00019178,2]
[346355004,1734907833049,-500.0,0.00019178,2]
[346355006,1734907833059,-500.0,0.00019178,2]
[346355008,1734907833068,-500.0,0.00019178,2]
[346355010,1734907833078,-500.0,0.00019178,2]
[346355012,1734907833087,-500.0,0.00019178,2]
[346355014,1734907833097,-530.44,0.00019178,2]
[346355016,1734907833106,-276.34,0.00019178,2]
[346355018,1734907833115,-500.0,0.00019178,2]
[346355020,1734907833124,-500.0,0.00019178,2]
[346355022,1734907833133,-500.0,0.00019178,2]
[346355024,1734907833143,-500.0,0.00019178,2]
[346355026,1734907833155,-500.0,0.00019178,2]
[346355028,1734907833164,-500.0,0.00019178,2]
[346355030,1734907833173,-500.0,0.00019178,2]
[346355031,1734907833182,-500.0,0.00019178,2]
[346355033,1734907833193,-500.0,0.00019178,2]
[346355035,1734907833202,-500.0,0.00019178,2]
[346355037,1734907833211,-500.0,0.00019178,2]
[346355039,1734907833222,-281.30245446,0.00019178,2]
[346355040,1734907833231,-500.0,0.00019178,2]
[346355042,1734907833241,-500.0,0.00019178,2]
[346355044,1734907833250,-500.0,0.00019178,2]
[346355046,1734907833259,-500.0,0.00019178,2]
[346355048,1734907833269,-500.0,0.00019178,2]
[346355049,1734907833278,-500.0,0.00019178,2]
[346355050,1734907833287,-500.0,0.00019178,2]
[346355051,1734907833297,-301.89824947,0.00019178,2]
[346355052,1734907833306,-500.0,0.00019178,2]
[346355053,1734907833318,-500.0,0.00019178,2]
[346355054,1734907833327,-500.0,0.00019178,2]
[346355055,1734907833336,-500.0,0.00019178,2]
[346355056,1734907833345,-500.0,0.00019178,2]
[346355057,1734907833355,-500.0,0.00019178,2]
[346355058,1734907833364,-500.0,0.00019178,2]
[346355059,1734907833373,-500.0,0.00019178,2]
[346355060,1734907833382,-500.0,0.00019178,2]
[346355061,1734907833391,-500.0,0.00019178,2]
[346355062,1734907833400,-500.0,0.00019178,2]
[346355063,1734907833410,-362.19681717,0.00019178,2]
[346355064,1734907833420,-647.92,0.00019178,2]
[346355065,1734907833429,-595.24,0.00019178,2]
[346355066,1734907833438,-500.0,0.00019178,2]
[346355067,1734907833447,-1049.04,0.00019178,2]
[346355068,1734907833456,-500.0,0.00019178,2]
[346355069,1734907833465,-500.0,0.00019178,2]
[346355070,1734907833474,-500.0,0.00019178,2]
[346355071,1734907833484,-292.66,0.00019178,2]
[346355072,1734907833493,-500.0,0.00019178,2]
[346355073,1734907833502,-500.0,0.00019178,2]
[346355074,1734907833511,-500.0,0.00019178,2]
[346355075,1734907833520,-500.0,0.00019178,2]
[346355076,1734907833529,-500.0,0.00019178,2]
[346355077,1734907833538,-500.0,0.00019178,2]
[346355078,1734907833547,-500.0,0.00019178,2]
[346355079,1734907833556,-500.0,0.00019178,2]
[346355080,1734907833565,-500.0,0.00019178,2]
[346355081,1734907833574,-500.0,0.00019178,2]
[346355082,1734907833583,-500.0,0.00019178,2]
[346355083,1734907833592,-500.0,0.00019178,2]
[346355084,1734907833601,-500.0,0.00019178,2]
[346355085,1734907833611,-500.0,0.00019178,2]
[346355086,1734907833620,-500.0,0.00019178,2]
[346355087,1734907833629,-500.0,0.00019178,2]
[346355088,1734907833638,-500.0,0.00019178,2]
[346355089,1734907833647,-579.54,0.00019178,2]
[346355090,1734907833656,-590.77,0.00019178,2]
[346355091,1734907833665,-547.7650005,0.00019178,2]
[346355092,1734907833674,-500.0,0.00019178,2]
[346355093,1734907833683,-500.0,0.00019178,2]
[346355094,1734907833692,-693.74,0.00019178,2]
[346355095,1734907833702,-500.0,0.00019178,2]
[346355096,1734907833711,-723.7,0.00019178,2]
[346355097,1734907833720,-699.59,0.00019178,2]
[346355098,1734907833729,-500.0,0.00019178,2]
[346355099,1734907833739,-510.21,0.00019178,2]
[346355100,1734907833749,-500.0,0.00019178,2]
[346355101,1734907833758,-500.0,0.00019178,2]
[346355102,1734907833767,-500.0,0.00019178,2]
[346355103,1734907833776,-500.0,0.00019178,2]
[346355104,1734907833785,-1022.68,0.00019178,2]
[346355105,1734907833795,-156.21,0.00019178,2]
[346355106,1734907833804,-500.0,0.00019178,2]
[346355107,1734907833813,-500.0,0.00019178,2]
[346355108,1734907833822,-438.65862162,0.00019178,2]
[346355109,1734907833831,-502.00627282,0.00019178,2]
[346355110,1734907833841,-565.41,0.00019178,2]
[346355111,1734907833850,-500.0,0.00019178,2]
[346355112,1734907833859,-721.62,0.00019178,2]
[346355113,1734907833868,-500.0,0.00019178,2]
[346355114,1734907833877,-500.0,0.00019178,2]
[346355115,1734907833886,-500.0,0.00019178,2]
[346355116,1734907833896,-758.81,0.00019178,2]
[346355117,1734907833905,-500.0,0.00019178,2]
[346355118,1734907833914,-500.0,0.00019178,2]
[346355119,1734907833924,-500.0,0.00019178,2]
[346355120,1734907833933,-500.0,0.00019178,2]
[346355121,1734907833943,-500.0,0.00019178,2]
[346355122,1734907833952,-500.0,0.00019178,2]
[346355123,1734907833961,-500.0,0.00019178,2]
[346355124,1734907833971,-631.93,0.00019178,2]
[346355125,1734907833980,-500.0,0.00019178,2]
[346355126,1734907833989,-585.62,0.00019178,2]
[346355127,1734907833997,-500.0,0.00019178,2]
[346355128,1734907834007,-500.0,0.00019178,2]
[346355129,1734907834015,-500.0,0.00019178,2]
[346355130,1734907834025,-500.0,0.00019178,2]
[346355131,1734907834033,-528.5,0.00019178,2]
[346355132,1734907834042,-500.0,0.00019178,2]
[346355133,1734907834051,-500.0,0.00019178,2]
[346355134,1734907834060,-500.0,0.00019178,2]
[346355135,1734907834069,-500.0,0.00019178,2]
[346355136,1734907834079,-500.0,0.00019178,2]
[346355137,1734907834088,-500.0,0.00019178,2]
[346355138,1734907834097,-500.0,0.00019178,2]
[346355139,1734907834106,-636.07,0.00019178,2]
[346355140,1734907834316,-500.0,0.00019178,2]
[346355141,1734907834326,-420.22829493,0.00019178,2]
[346355142,1734907834335,-500.0,0.00019178,2]
[346355143,1734907834344,-500.0,0.00019178,2]
[346355144,1734907834354,-500.0,0.00019178,2]
[346355145,1734907834363,-500.0,0.00019178,2]
[346355146,1734907834372,-500.0,0.00019178,2]
[346355147,1734907834381,-500.0,0.00019178,2]
[346355148,1734907834390,-500.0,0.00019178,2]
[346355149,1734907834400,-500.0,0.00019178,2]
[346355150,1734907834409,-500.0,0.00019178,2]
[346355151,1734907834419,-404.91461292,0.00019178,2]
[346355152,1734907834428,-500.0,0.00019178,2]
[346355153,1734907834438,-596.45,0.00019178,2]
[346355154,1734907834447,-500.0,0.00019178,2]
[346355155,1734907834456,-289.69886786,0.00019178,2]
[346355156,1734907834466,-500.0,0.00019178,2]
[346355157,1734907834475,-782.78,0.00019178,2]
[346355158,1734907834485,-547.21,0.00019178,2]
[346355159,1734907834494,-500.0,0.00019178,2]
[346355160,1734907834504,-1014.35,0.00019178,2]
[346355161,1734907834513,-500.0,0.00019178,2]
[346355162,1734907834522,-712.87,0.00019178,2]
[346355163,1734907834531,-500.0,0.00019178,2]
[346355164,1734907834540,-500.0,0.00019178,2]
[346355165,1734907834550,-500.0,0.00019178,2]
[346355166,1734907834558,-637.03,0.00019178,2]
[346355167,1734907834567,-500.0,0.00019178,2]
[346355168,1734907834577,-1042.58,0.00019178,2]
[346355169,1734907834586,-500.0,0.00019178,2]
[346355170,1734907834595,-6435.26,0.00019178,2]
[346355171,1734907834605,-500.0,0.00019178,2]
[346355172,1734907834615,-623.18,0.00019178,2]
[346355173,1734907834624,-704.19,0.00019178,2]
[346355174,1734907834633,-500.0,0.00019178,2]
[346355175,1734907834642,-687.81,0.00019178,2]
[346355176,1734907834651,-1811.62,0.00019178,2]
[346355177,1734907834660,-1659.12,0.00019178,2]
[346355178,1734907834670,-500.0,0.00019178,2]
[346355179,1734907834679,-480.604431,0.00019178,2]
[346355180,1734907834688,-500.0,0.00019178,2]
[346355181,1734907834700,-721.77311,0.00019178,2]
[346355182,1734907834709,-500.0,0.00019178,2]
[346355183,1734907834718,-500.0,0.00019178,2]
[346355184,1734907834727,-1712.25,0.00019178,2]
[346355185,1734907834736,-849.01,0.00019178,2]
[346355186,1734907834745,-723.6,0.00019178,2]
[346355187,1734907834754,-927.06,0.00019178,2]
[346355188,1734907834763,-500.0,0.00019178,2]
[346355189,1734907834772,-1251.98,0.00019178,2]
[346355190,1734907834782,-500.0,0.00019178,2]
[346355191,1734907834791,-2462.95,0.00019178,2]
[346355192,1734907834800,-667.28,0.00019178,2]
[346355193,1734907834809,-2627.48,0.00019178,2]
[346355194,1734907834819,-7712.81,0.00019178,2]
[346355195,1734907834828,-671.7,0.00019178,2]
[346355196,1734907834838,-1433.62,0.00019178,2]
[346355197,1734907834847,-500.0,0.00019178,2]
[346355198,1734907834857,-500.0,0.00019178,2]
[346355199,1734907834866,-500.0,0.00019178,2]
[346355200,1734907834875,-1663.12,0.00019178,2]
[346355201,1734907834884,-523.2,0.00019178,2]
[346355202,1734907834894,-500.0,0.00019178,2]
[346355203,1734907834903,-9802.09,0.00019178,2]
[346355204,1734907834912,-500.0,0.00019178,2]
[346355205,1734907834921,-500.0,0.00019178,2]
[346355206,1734907834930,-500.0,0.00019178,2]
[346355207,1734907834939,-500.0,0.00019178,2]
[346355208,1734907834948,-500.0,0.00019178,2]
[346355209,1734907834958,-931.36,0.00019178,2]
[346355210,1734907834968,-5731.55,0.00019178,2]
[346355211,1734907834978,-882.73,0.00019178,2]
[346355212,1734907834987,-500.0,0.00019178,2]
[346355213,1734907834996,-824.52,0.00019178,2]
[346355214,1734907835005,-938.52,0.00019178,2]
[346355215,1734907835014,-1292.47,0.00019178,2]
[346355216,1734907835023,-1216.24,0.00019178,2]
[346355217,1734907835032,-1136.4,0.00019178,2]
[346355218,1734907835041,-1594.18,0.00019178,2]
[346355219,1734907835050,-500.0,0.00019178,2]
[346355220,1734907835059,-829.04,0.00019178,2]
[346355221,1734907835070,-990.54,0.00019178,2]
[346355222,1734907835082,-500.0,0.00019178,2]
[346355223,1734907835090,-2037.06,0.00019178,2]
[346355224,1734907835099,-1847.87,0.00019178,2]
[346355225,1734907835108,-534.01,0.00019178,2]
[346355226,1734907835117,-500.0,0.00019178,2]
[346355227,1734907835126,-597.2,0.00019178,2]
[346355228,1734907835135,-500.0,0.00019178,2]
[346355229,1734907835146,-1679.51,0.00019178,2]
[346355230,1734907835157,-500.0,0.00019178,2]
[346355231,1734907835167,-7671.32,0.00019178,2]
[346355232,1734907835180,-500.0,0.00019178,2]
[346355233,1734907835190,-500.0,0.00019178,2]
[346355234,1734907835199,-1121.53,0.00019178,2]
[346355235,1734907835208,-503.9,0.00019178,2]
[346355236,1734907835217,-500.0,0.00019178,2]
[346355237,1734907835227,-500.0,0.00019178,2]
[346355238,1734907835238,-1423.2,0.00019178,2]
[346355239,1734907835248,-1087.04,0.00019178,2]
[346355240,1734907835258,-500.0,0.00019178,2]
[346355241,1734907835267,-2049.24,0.00019178,2]
[346355242,1734907835275,-500.0,0.00019178,2]
[346355243,1734907835285,-1296.88,0.00019178,2]
[346355244,1734907835294,-500.0,0.00019178,2]
[346355245,1734907835305,-500.0,0.00019178,2]
[346355246,1734907835315,-1997.35,0.00019178,2]
[346355247,1734907835325,-500.0,0.00019178,2]
[346355248,1734907835336,-1288.59,0.00019178,2]
[346355249,1734907835346,-1378.41,0.00019178,2]
[346355250,1734907835356,-500.0,0.00019178,2]
[346355251,1734907835367,-2624.35,0.00019178,2]
[346355252,1734907835377,-3656.81,0.00019178,2]
[346355253,1734907835386,-500.0,0.00019178,2]
[346355254,1734907835395,-500.0,0.00019178,2]
[346355255,1734907835404,-525.07,0.00019178,2]
[346355256,1734907835413,-528.55636853,0.00019178,2]
[346355257,1734907835425,-4187.06,0.00019178,2]
[346355258,1734907835435,-3076.19,0.00019178,2]
[346355259,1734907835446,-776.13,0.00019178,2]
[346355260,1734907835455,-3362.01,0.00019178,2]
[346355261,1734907835464,-635.72,0.00019178,2]
[346355262,1734907835474,-762.87,0.00019178,2]
[346355263,1734907835483,-3302.47,0.00019178,2]
[346355264,1734907835492,-3065.21,0.00019178,2]
[346355265,1734907835502,-500.0,0.00019178,2]
[346355266,1734907835511,-500.0,0.00019178,2]
[346355267,1734907835520,-1519.52,0.00019178,2]
[346355268,1734907835530,-500.0,0.00019178,2]
[346355269,1734907835539,-500.0,0.00019178,2]
[346355270,1734907835548,-1948.04,0.00019178,2]
[346355271,1734907835557,-1447.99,0.00019178,2]
[346355272,1734907835567,-1655.24,0.00019178,2]
[346355273,1734907835576,-500.0,0.00019178,2]
[346355274,1734907835585,-500.0,0.00019178,2]
[346355275,1734907835595,-500.0,0.00019178,2]
[346355276,1734907835604,-2047.95,0.00019178,2]
[346355277,1734907835613,-577.94,0.00019178,2]
[346355278,1734907835622,-2989.97,0.00019178,2]
[346355279,1734907835631,-538.31,0.00019178,2]
[346355280,1734907835641,-500.0,0.00019178,2]
[346355281,1734907835650,-500.0,0.00019178,2]
[346355282,1734907835659,-500.0,0.00019178,2]
[346355283,1734907835669,-6806.89,0.00019178,2]
[346355284,1734907835678,-1113.32,0.00019178,2]
[346355285,1734907835687,-500.0,0.00019178,2]
[346355286,1734907835697,-500.0,0.00019178,2]
[346355287,1734907835706,-500.0,0.00019178,2]
[346355288,1734907835715,-5874.78,0.00019178,2]
[346355289,1734907835725,-500.0,0.00019178,2]
[346355290,1734907835734,-1148.42,0.00019178,2]
[346355291,1734907835743,-500.0,0.00019178,2]
[346355292,1734907835752,-500.0,0.00019178,2]
[346355293,1734907835761,-716.0,0.00019178,2]
[346355294,1734907835770,-831.19,0.00019178,2]
[346355295,1734907835779,-500.0,0.00019178,2]
[346355296,1734907835788,-1359.26,0.00019178,2]
[346355297,1734907835797,-500.0,0.00019178,2]
[346355298,1734907835807,-1670.35,0.00019178,2]
[346355299,1734907835816,-500.0,0.00019178,2]
[346355300,1734907835825,-1126.55,0.00019178,2]
[346355301,1734907835834,-3107.91,0.00019178,2]
[346355302,1734907835843,-320.32006246,0.00019178,2]
[346355303,1734907835852,-1078.88,0.00019178,2]
[346355304,1734907835861,-500.0,0.00019178,2]
[346355305,1734907835871,-500.0,0.00019178,2]
[346355306,1734907835880,-500.0,0.00019178,2]
[346355307,1734907835889,-159.50120865,0.00019188,2]
[346355308,1734907835898,-159.50120865,0.00019247,2]
[346355309,1734907835907,-793.10861648,0.00019254,2]
[346355310,1734907835918,-156.25953738,0.00019261,2]
[346355311,1734907835928,-159.50120865,0.00019306,2]
[346355312,1734907835936,-793.10861648,0.00019346,2]
[346355313,1734907835945,-156.25953738,0.00019352,2]
[346355314,1734907835954,-5000.0,0.00019352,2]
[346355315,1734907835963,-159.50120865,0.00019366,2]
[346355316,1734907835972,-410.3919574,0.00019413,2]
[346355317,1734907835981,-159.50120865,0.00019425,2]
[346355318,1734907835990,-793.10861648,0.00019438,2]
[346355319,1734907835999,-156.25953738,0.00019443,2]
[346355320,1734907836008,-500.0,0.00019451,2]
[346355321,1734907836017,-840.77,0.00019451,2]
[346355322,1734907836027,-862.97,0.00019451,2]
[346355323,1734907836036,-500.0,0.00019451,2]
[346355324,1734907836045,-990.4,0.00019451,2]
[346355325,1734907836054,-849.01,0.00019451,2]
[346355326,1734907836064,-922.03,0.00019451,2]
[346355327,1734907836073,-573.55,0.00019451,2]
[346355328,1734907836082,-3162.14,0.00019451,2]
[346355329,1734907836091,-21557.8,0.00019451,2]
[346355330,1734907836100,-1900.11,0.00019451,2]
[346355331,1734907836109,-1052.37,0.00019451,2]
[346355332,1734907836119,-741.04,0.00019451,2]
[346355333,1734907836128,-500.0,0.00019451,2]
[346355334,1734907836137,-271.02685433,0.00019451,2]
[346355335,1734907836148,-2027.8,0.00019451,2]
[346355336,1734907836158,-12841.72,0.00019451,2]
[346355337,1734907836167,-500.0,0.00019451,2]
[346355338,1734907836177,-995.35,0.00019451,2]
[346355339,1734907836186,-974.71,0.00019451,2]
[346355340,1734907836196,-785.25,0.00019451,2]
[346355341,1734907836206,-3278.12,0.00019451,2]
[346355342,1734907836216,-500.0,0.00019451,2]
[346355343,1734907836226,-500.0,0.00019451,2]
[346355344,1734907836236,-1000.0,0.00019451,2]
[346355345,1734907836246,-814.27,0.00019451,2]
[346355346,1734907836257,-500.0,0.00019451,2]
[346355347,1734907836267,-2682.82,0.00019451,2]
[346355348,1734907836276,-500.0,0.00019452,2]
[346355349,1734907836286,-603.58975833,0.00019452,2]
[346355350,1734907836296,-444.12324521,0.00019452,2]
[346355351,1734907836305,-502.52,0.00019452,2]
[346355352,1734907836314,-2264.37,0.00019452,2]
[346355353,1734907836323,-500.0,0.00019452,2]
[346355354,1734907836333,-500.0,0.00019452,2]
[346355355,1734907836342,-500.0,0.00019452,2]
[346355356,1734907836351,-511.07,0.00019452,2]
[346355357,1734907836360,-500.0,0.00019452,2]
[346355358,1734907836370,-590.46,0.00019452,2]
[346355359,1734907836379,-500.0,0.00019452,2]
[346355360,1734907836388,-500.0,0.00019452,2]
[346355361,1734907836397,-500.0,0.00019452,2]
[346355362,1734907836407,-500.0,0.00019452,2]
[346355363,1734907836416,-500.0,0.00019452,2]
[346355364,1734907836426,-500.0,0.00019452,2]
[346355365,1734907836435,-638.61,0.00019452,2]
[346355366,1734907836444,-500.0,0.00019452,2]
[346355367,1734907836453,-500.0,0.00019452,2]
[346355368,1734907836462,-500.0,0.00019452,2]
[346355369,1734907836471,-500.0,0.00019452,2]
[346355370,1734907836480,-500.0,0.00019452,2]
[346355371,1734907836489,-500.0,0.00019452,2]
[346355372,1734907836499,-500.0,0.00019452,2]
[346355373,1734907836508,-500.0,0.00019452,2]
[346355374,1734907836517,-500.0,0.00019452,2]
[346355375,1734907836526,-500.0,0.00019452,2]
[346355376,1734907836535,-647.92,0.00019452,2]
[346355377,1734907836544,-595.24,0.00019452,2]
[346355378,1734907836553,-1049.04,0.00019452,2]
[346355379,1734907836562,-500.0,0.00019452,2]
[346355380,1734907836571,-272.07,0.00019452,2]
[346355381,1734907836580,-500.0,0.00019452,2]
[346355382,1734907836589,-500.0,0.00019452,2]
[346355383,1734907836598,-500.0,0.00019452,2]
[346355384,1734907836608,-500.0,0.00019452,2]
[346355385,1734907836617,-500.0,0.00019452,2]
[346355386,1734907836626,-500.0,0.00019452,2]
[346355387,1734907836635,-500.0,0.00019452,2]
[346355388,1734907836645,-500.0,0.00019452,2]
[346355389,1734907836654,-500.0,0.00019452,2]
[346355390,1734907836664,-500.0,0.00019452,2]
[346355391,1734907836673,-500.0,0.00019452,2]
[346355392,1734907836683,-408.63351313,0.00019452,2]
[346355393,1734907836692,-579.54,0.00019452,2]
[346355394,1734907836702,-590.77,0.00019452,2]
[346355395,1734907836711,-500.0,0.00019452,2]
[346355396,1734907836720,-500.0,0.00019452,2]
[346355397,1734907836730,-693.74,0.00019452,2]
[346355398,1734907836740,-500.0,0.00019452,2]
[346355399,1734907836749,-723.7,0.00019452,2]
[346355400,1734907836758,-699.59,0.00019452,2]
[346355401,1734907836767,-510.21,0.00019452,2]
[346355402,1734907836776,-500.0,0.00019452,2]
[346355403,1734907836786,-500.0,0.00019452,2]
[346355404,1734907836795,-500.0,0.00019452,2]
[346355405,1734907836805,-500.0,0.00019452,2]
[346355406,1734907836815,-1022.68,0.00019452,2]
[346355407,1734907836824,-500.0,0.00019452,2]
[346355408,1734907836834,-500.0,0.00019452,2]
[346355409,1734907836843,-721.62,0.00019452,2]
[346355410,1734907836852,-500.0,0.00019452,2]
[346355411,1734907836861,-500.0,0.00019452,2]
[346355412,1734907836870,-500.0,0.00019452,2]
[346355413,1734907836879,-758.81,0.00019452,2]
[346355414,1734907836889,-500.0,0.00019452,2]